{"text_format":"1","workbook":"xlsx","n_sheets":3,"sheets":["Data Input","Variable definitions","ED_URG_Parameters"],"not_rendered":{"charts":0,"images":1,"macros":1,"external_links":0,"defined_names":0,"comments":0,"pivot_tables":0},"unopened":[],"bounds":{"document_bytes":16777216,"sheet_cells":100000,"rows_first":2000,"rows_last":500,"rows_between":2000,"halvings":0,"cell_chars":16384,"cell_head_chars":4096},"cells_cut":0,"cells_raw":0,"read":"whole","date_system":"1900"}

{"sheet":"Data Input","index":0,"n_rows":101,"n_cols":5,"rows_kept":101,"cut":false,"hidden":false,"merged":[]}
["RecordID","Pat_Indigenous_Flag","URG v1.4 Code",null,"NWAU"]
["Record01",0,"URG012"]
["Record02",0,"URG052"]
["Record03",0,"URG087"]
["Record04",0,"URG063"]
["Record05",0,"URG060"]
["Record06",0,"URG062"]
["Record07",0,"URG078"]
["Record08",0,"URG043"]
["Record09",0,"URG016"]
["Record10",0,"URG068"]
["Record11",1,"URG127"]
["Record12",0,"URG010"]
["Record13",0,"URG050"]
["Record14",0,"URG058"]
["Record15",1,"URG066"]
["Record16",0,"URG105"]
["Record17",0,"URG067"]
["Record18",0,"URG058"]
["Record19",0,"URG062"]
["Record20",0,"URG071"]
["Record21",0,"URG057"]
["Record22",0,"URG034"]
["Record23",1,"URG058"]
["Record24",0,"URG065"]
["Record25",0,"URG070"]
["Record26",0,"URG081"]
["Record27",0,"URG020"]
["Record28",0,"URG058"]
["Record29",0,"URG058"]
["Record30",0,"URG073"]
["Record31",0,"URG060"]
["Record32",0,"URG050"]
["Record33",0,"URG058"]
["Record34",0,"URG067"]
["Record35",0,"URG058"]
["Record36",0,"URG126"]
["Record37",0,"URG057"]
["Record38",0,"URG070"]
["Record39",0,"URG007"]
["Record40",0,"URG058"]
["Record41",0,"URG076"]
["Record42",0,"URG051"]
["Record43",1,"URG015"]
["Record44",0,"URG062"]
["Record45",0,"URG023"]
["Record46",0,"URG058"]
["Record47",0,"URG023"]
["Record48",0,"URG052"]
["Record49",0,"URG016"]
["Record50",0,"URG127"]
["Record51",0,"URG057"]
["Record52",0,"URG084"]
["Record53",0,"URG078"]
["Record54",0,"URG050"]
["Record55",0,"URG127"]
["Record56",0,"URG057"]
["Record57",0,"URG067"]
["Record58",0,"URG080"]
["Record59",0,"URG058"]
["Record60",0,"URG048"]
["Record61",0,"URG016"]
["Record62",0,"URG055"]
["Record63",0,"URG122"]
["Record64",0,"URG067"]
["Record65",0,"URG078"]
["Record66",0,"URG071"]
["Record67",0,"URG058"]
["Record68",0,"URG024"]
["Record69",1,"URG109"]
["Record70",0,"URG034"]
["Record71",0,"URG023"]
["Record72",0,"URG021"]
["Record73",0,"URG050"]
["Record74",1,"URG063"]
["Record75",0,"URG065"]
["Record76",0,"URG019"]
["Record77",0,"URG086"]
["Record78",0,"URG050"]
["Record79",0,"URG048"]
["Record80",0,"URG016"]
["Record81",1,"URG062"]
["Record82",0,"URG073"]
["Record83",1,"URG122"]
["Record84",0,"URG073"]
["Record85",0,"URG065"]
["Record86",0,"URG058"]
["Record87",0,"URG126"]
["Record88",0,"URG057"]
["Record89",1,"URG058"]
["Record90",0,"URG101"]
["Record91",0,"URG048"]
["Record92",0,"URG099"]
["Record93",0,"URG053"]
["Record94",0,"URG048"]
["Record95",1,"URG109"]
["Record96",0,"URG073"]
["Record97",0,"URG066"]
["Record98",0,"URG058"]
["Record99",0,"URG112"]
["Record100",0,"URG021"]

{"sheet":"Variable definitions","index":1,"n_rows":120,"n_cols":7,"rows_kept":120,"cut":false,"hidden":false,"merged":[[6,3,16,3]]}
[]
[null,"Variable definitions reference sheet for Emergency Department Urgency Related Groups"]
[]
[null,"Name","Type","Description","Allowed values (where relevant)","Missing values","Comment"]
[null,"RecordID","Character or Numeric","Record Identifier",null,"Allowed","May be used to link NWAU values back to original data."]
[null,"Pat_Indigenous_Flag","Numeric","Used to flag patients as being of Aboriginal and/or Torres Strait Islander origin","0 - Patient not of Aboriginal or Torres Strait Islander origin\n1 - Patient of Aboriginal and/or Torres Strait Islander origin","Not allowed"]
[null,"URG v1.4 Code","Character","6 character URG: prefix of \"URG\" followed by the standard URG Code with a double zero as a place holder prior to single digit URG code or a single zero as a place holder prior to a double digit URG code.","URG003 - Admitted Triage 1 - Injury","Not allowed","Activity out of scope are assigned an NWAU of 0."]
[null,null,null,null,"URG004 - Admitted Triage 1 - Poisoning/Toxic effects of drugs"]
[null,null,null,null,"URG005 - Admitted Triage 1 - Respiratory system illness"]
[null,null,null,null,"URG006 - Admitted Triage 1 - Circulatory system and Endocrine, nutritional and metabolic illness"]
[null,null,null,null,"URG007 - Admitted Triage 1 - All other MDB groups"]
[null,null,null,null,"URG079 - Admitted Triage 1 - Psychiatric illness"]
[null,null,null,null,"URG009 - Admitted Triage 2 - Poisoning"]
[null,null,null,null,"URG010 - Admitted Triage 2 - Injury"]
[null,null,null,null,"URG011 - Admitted Triage 2 - Gastrointestinal system and Digestive system illness "]
[null,null,null,null,"URG012 - Admitted Triage 2 - Respiratory system illness"]
[null,null,null,null,"URG014 - Admitted Triage 2 - Neurological illness"]
[null,null,null,null,"URG015 - Admitted Triage 2 - Toxic effects of drugs"]
[null,null,null,null,"URG016 - Admitted Triage 2 - Circulatory system and Endocrine, nutritional and metabolic illness"]
[null,null,null,null,"URG017 - Admitted Triage 2 - All other MDB groups"]
[null,null,null,null,"URG080 - Admitted Triage 2 - System infection/parasites"]
[null,null,null,null,"URG081 - Admitted Triage 2 - Urological system illness"]
[null,null,null,null,"URG082 - Admitted Triage 2 - Psychiatric illness"]
[null,null,null,null,"URG019 - Admitted Triage 3 - Blood/Immune system illness & system infection/parasites"]
[null,null,null,null,"URG020 - Admitted Triage 3 - Injury"]
[null,null,null,null,"URG021 - Admitted Triage 3 - Neurological illness"]
[null,null,null,null,"URG022 - Admitted Triage 3 - Obstetric/Gynaecological illness"]
[null,null,null,null,"URG023 - Admitted Triage 3 - Digestive system illness"]
[null,null,null,null,"URG024 - Admitted Triage 3 - Circulatory system illness and endocrine, nutritional and metabolic illness"]
[null,null,null,null,"URG025 - Admitted Triage 3 - Poisoning/Toxic effects of drugs"]
[null,null,null,null,"URG026 - Admitted Triage 3 - Urological illness"]
[null,null,null,null,"URG027 - Admitted Triage 3 - Respiratory system illness"]
[null,null,null,null,"URG029 - Admitted Triage 3 - All other MDB groups"]
[null,null,null,null,"URG083 - Admitted Triage 3 - Illness of eyes, ear, nose, throat "]
[null,null,null,null,"URG084 - Admitted Triage 3 - Hepatobiliary system illness "]
[null,null,null,null,"URG085 - Admitted Triage 3 - Psychiatric illness"]
[null,null,null,null,"URG030 - Admitted Triage 4 - Poisoning/Toxic effects of drugs"]
[null,null,null,null,"URG031 - Admitted Triage 4 - Respiratory system illness"]
[null,null,null,null,"URG032 - Admitted Triage 4 - Gastrointestinal system and Digestive system illness"]
[null,null,null,null,"URG033 - Admitted Triage 4 - All other MDB groups"]
[null,null,null,null,"URG034 - Admitted Triage 4 - Injury"]
[null,null,null,null,"URG035 - Admitted Triage 4 - Social problem/Other presentation"]
[null,null,null,null,"URG086 - Admitted Triage 4 - Circulatory system illness and Endocrine, nutritional and metabolic illness "]
[null,null,null,null,"URG087 - Admitted Triage 4 - Illness of eyes, ear nose and throat "]
[null,null,null,null,"URG088 - Admitted Triage 4 - Blood/immune system illness/system infection/parasites "]
[null,null,null,null,"URG089 - Admitted Triage 4 - Gynaecological and Male reproductive system illness"]
[null,null,null,null,"URG090 - Admitted Triage 4 - Psychiatric illness"]
[null,null,null,null,"URG037 - Admitted Triage 5 - All other MDB groups 1"]
[null,null,null,null,"URG091 - Admitted Triage 5 - All other MDB groups 2"]
[null,null,null,null,"URG092 - Admitted Triage 5 - Injury"]
[null,null,null,null,"URG093 - Admitted Triage 5 - Gastrointestinal system and Digestive system illness"]
[null,null,null,null,"URG094 - Admitted Triage 5 - Psychiatric illness"]
[null,null,null,null,"URG039 - Non-Admitted Triage 1 - All MDB groups"]
[null,null,null,null,"URG040 - Non-Admitted Triage 2 - Toxic effects of drugs "]
[null,null,null,null,"URG043 - Non-Admitted Triage 2 - Circulatory system / Endocrine, nutritional and metabolic diseases "]
[null,null,null,null,"URG044 - Non-Admitted Triage 2 - Injury"]
[null,null,null,null,"URG045 - Non-Admitted Triage 2 - Poisoning"]
[null,null,null,null,"URG046 - Non-Admitted Triage 2 - All other MDB groups"]
[null,null,null,null,"URG095 - Non-Admitted Triage 2 - Respiratory system illness "]
[null,null,null,null,"URG096 - Non-Admitted Triage 2 - Urological system illness "]
[null,null,null,null,"URG097 - Non-Admitted Triage 2 - Gastrointestinal system and Digestive system illness"]
[null,null,null,null,"URG098 - Non-Admitted Triage 2 - Neurological illness "]
[null,null,null,null,"URG099 - Non-Admitted Triage 2 - Blood/immune system illness/system infection/parasites "]
[null,null,null,null,"URG100 - Non-Admitted Triage 2 - Psychiatric illness "]
[null,null,null,null,"URG048 - Non-Admitted Triage 3 - Circulatory system and Endocrine, nutritional and metabolic illness"]
[null,null,null,null,"URG050 - Non-Admitted Triage 3 - Injury"]
[null,null,null,null,"URG051 - Non-Admitted Triage 3 - Genitourinary illness"]
[null,null,null,null,"URG052 - Non-Admitted Triage 3 - Gastrointestinal system and Digestive system illness"]
[null,null,null,null,"URG053 - Non-Admitted Triage 3 - Neurological illness"]
[null,null,null,null,"URG055 - Non-Admitted Triage 3 - Respiratory system illness"]
[null,null,null,null,"URG056 - Non-Admitted Triage 3 - Musculoskeletal/connective tissue illness"]
[null,null,null,null,"URG057 - Non-Admitted Triage 3 - All other MDB groups"]
[null,null,null,null,"URG101 - Non-Admitted Triage 3 - Poisoning "]
[null,null,null,null,"URG102 - Non-Admitted Triage 3 - Toxic effects of drugs "]
[null,null,null,null,"URG103 - Non-Admitted Triage 3 - Illness of eyes"]
[null,null,null,null,"URG104 - Non-Admitted Triage 3 - Blood/immune system illness/system infection/parasites "]
[null,null,null,null,"URG105 - Non-Admitted Triage 3 - Psychiatric illness "]
[null,null,null,null,"URG058 - Non-Admitted Triage 4 - Injury"]
[null,null,null,null,"URG060 - Non-Admitted Triage 4 - Urological system illness "]
[null,null,null,null,"URG061 - Non-Admitted Triage 4 - Circulatory system / Endocrine, nutritional and metabolic illness "]
[null,null,null,null,"URG062 - Non-Admitted Triage 4 - Gastrointestinal system and Digestive system illness"]
[null,null,null,null,"URG063 - Non-Admitted Triage 4 - Musculoskeletal/connective tissue illness"]
[null,null,null,null,"URG065 - Non-Admitted Triage 4 - Illness of the ENT"]
[null,null,null,null,"URG066 - Non-Admitted Triage 4 - Illness of the Eyes"]
[null,null,null,null,"URG067 - Non-Admitted Triage 4 - Other presentation block"]
[null,null,null,null,"URG068 - Non-Admitted Triage 4 - All other MDB groups"]
[null,null,null,null,"URG106 - Non-Admitted Triage 4 - Poisoning"]
[null,null,null,null,"URG107 - Non-Admitted Triage 4 - Toxic effects of drugs "]
[null,null,null,null,"URG108 - Non-Admitted Triage 4 - Respiratory system illness "]
[null,null,null,null,"URG109 - Non-Admitted Triage 4 - Blood/Immune system illness/System infection/parasites "]
[null,null,null,null,"URG110 - Non-Admitted Triage 4 - Obstetric and Newborn/Neonate "]
[null,null,null,null,"URG111 - Non-Admitted Triage 4 - Gynecological/Male reproductive system illness "]
[null,null,null,null,"URG112 - Non-Admitted Triage 4 - Psychiatric illness"]
[null,null,null,null,"URG069 - Non-Admitted Triage 5 - Poisoning/Toxic effects of drugs"]
[null,null,null,null,"URG070 - Non-Admitted Triage 5 - Injury"]
[null,null,null,null,"URG071 - Non-Admitted Triage 5 - Other presentation block"]
[null,null,null,null,"URG072 - Non-Admitted Triage 5 - All other MDB groups"]
[null,null,null,null,"URG113 - Non-Admitted Triage 5 - Circulatory system illness/Endocrine, nutritional and metabolic diseases "]
[null,null,null,null,"URG114 - Non-Admitted Triage 5 - Gastrointestinal system and Digestive system illness "]
[null,null,null,null,"URG115 - Non-Admitted Triage 5 - Illness of the eyes, ear, nose and throat "]
[null,null,null,null,"URG116 - Non-Admitted Triage 5 - Illness of the skin, subcutaneous tissue, breast/Musculoskeletal/Connective tissue illness "]
[null,null,null,null,"URG117 - Non-Admitted Triage 5 - Blood/immune system illness/system infection/parasites "]
[null,null,null,null,"URG118 - Non-Admitted Triage 5 - Obstetric illness/Newborn/Neonate "]
[null,null,null,null,"URG119 - Non-Admitted Triage 5 - Genitourinary system illness "]
[null,null,null,null,"URG120 - Non-Admitted Triage 5 - Psychiatric illness"]
[null,null,null,null,"URG038 - Dead on Arrival w any Triage w any MDB"]
[null,null,null,null,"URG073 - Did Not Wait"]
[null,null,null,null,"URG074 - Transfer presentation_1, 2"]
[null,null,null,null,"URG121 - Transfer presentation_3"]
[null,null,null,null,"URG122 - Transfer presentation_4"]
[null,null,null,null,"URG123 - Transfer presentation_5"]
[null,null,null,null,"URG075 - Died in emergency department_triage 1"]
[null,null,null,null,"URG124 - Died in emergency department_triage 2-5"]
[null,null,null,null,"URG076 - Admitted Return visit, planned w any Triage"]
[null,null,null,null,"URG077 - Non-Admitted Return visit, planned – Triage 1, 2"]
[null,null,null,null,"URG078 - Non-Admitted Return visit, planned – Triage 3-5"]
[null,null,null,null,"URG125 - Left at own risk_1, 2"]
[null,null,null,null,"URG126 - Left at own risk_3"]
[null,null,null,null,"URG127 - Left at own risk_4"]
[null,null,null,null,"URG128 - Left at own risk_5"]

{"sheet":"ED_URG_Parameters","index":2,"n_rows":115,"n_cols":4,"rows_kept":115,"cut":false,"hidden":true,"merged":[]}
["URG v1.4 Code","URG v1.4","Description","Price Weights"]
[{"$f":"IF(LEN(B2)=1,\"URG00\"&B2,IF(LEN(B2)=2,\"URG0\"&B2,\"URG\"&B2))","v":"URG003"},3,"Adm_T1_Injury",0.43340000000000001]
[{"$f":"IF(LEN(B3)=1,\"URG00\"&B3,IF(LEN(B3)=2,\"URG0\"&B3,\"URG\"&B3))","v":"URG004"},4,"Adm_T1_Poisoning/Toxic effects of drugs",0.32019999999999998]
["URG005",5,"Adm_T1_Respiratory system illness",0.31640000000000001]
["URG006",6,"Adm_T1_Circulatory system and Endocrine, nutritional and metabolic illness",0.30009999999999998]
["URG007",7,"Adm_T1_All other MDB groups",0.3473]
["URG079",79,"Adm_T1_Psychiatric illness",0.33489999999999998]
["URG009",9,"Adm_T2_Poisoning",0.2344]
["URG010",10,"Adm_T2_Injury",0.28029999999999999]
["URG011",11,"Adm_T2_Gastrointestinal system and Digestive system illness ",0.28110000000000002]
["URG012",12,"Adm_T2_Respiratory system illness",0.25069999999999998]
["URG014",14,"Adm_T2_Neurological illness",0.2888]
["URG015",15,"Adm_T2_Toxic effects of drugs",0.23269999999999999]
["URG016",16,"Adm_T2_Circulatory system and Endocrine, nutritional and metabolic illness",0.2311]
["URG017",17,"Adm_T2_All other MDB groups",0.21299999999999999]
["URG080",80,"Adm_T2_System infection/parasites",0.27979999999999999]
["URG081",81,"Adm_T2_Urological system illness",0.26740000000000003]
["URG082",82,"Adm_T2_Psychiatric illness",0.2611]
["URG019",19,"Adm_T3_Blood/Immune system illness & system infection/parasites",0.23119999999999999]
["URG020",20,"Adm_T3_Injury",0.20660000000000001]
["URG021",21,"Adm_T3_Neurological illness",0.2414]
["URG022",22,"Adm_T3_Obstetric/Gynaecological illness",9.8500000000000004E-2]
["URG023",23,"Adm_T3_Digestive system illness",0.22900000000000001]
["URG024",24,"Adm_T3_Circulatory system illness and endocrine, nutritional and metabolic illness",0.2132]
["URG025",25,"Adm_T3_Poisoning/Toxic effects of drugs",0.19189999999999999]
["URG026",26,"Adm_T3_Urological illness",0.22420000000000001]
["URG027",27,"Adm_T3_Respiratory system illness",0.22159999999999999]
["URG029",29,"Adm_T3_All other MDB groups",0.20549999999999999]
["URG083",83,"Adm_T3_Illness of eyes, ear, nose, throat ",0.17100000000000001]
["URG084",84,"Adm_T3_Hepatobiliary system illness ",0.2419]
["URG085",85,"Adm_T3_Psychiatric illness",0.20169999999999999]
["URG030",30,"Adm_T4_Poisoning/Toxic effects of drugs",0.14949999999999999]
["URG031",31,"Adm_T4_Respiratory system illness",0.19209999999999999]
["URG032",32,"Adm_T4_Gastrointestinal system and Digestive system illness",0.19589999999999999]
["URG033",33,"Adm_T4_All other MDB groups",0.17649999999999999]
["URG034",34,"Adm_T4_Injury",0.159]
["URG035",35,"Adm_T4_Social problem/Other presentation",0.16009999999999999]
["URG086",86,"Adm_T4_Circulatory system illness and Endocrine, nutritional and metabolic illness ",0.18790000000000001]
["URG087",87,"Adm_T4_Illness of eyes, ear nose and throat ",0.14299999999999999]
["URG088",88,"Adm_T4_Blood/immune system illness/system infection/parasites ",0.1895]
["URG089",89,"Adm_T4_Gynaecological and Male reproductive system illness",0.157]
["URG090",90,"Adm_T4_Psychiatric illness",0.1663]
["URG037",37,"Adm_T5_All other MDB groups 1",0.105]
["URG091",91,"Adm_T5_All other MDB groups 2",0.15529999999999999]
["URG092",92,"Adm_T5_Injury",0.12239999999999999]
["URG093",93,"Adm_T5_Gastrointestinal system and Digestive system illness",0.1704]
["URG094",94,"Adm_T5_Psychiatric illness",0.12820000000000001]
["URG039",39,"N-A_T1_All MDB groups",0.30990000000000001]
["URG040",40,"N-A_T2_Toxic effects of drugs ",0.20699999999999999]
["URG043",43,"N-A_T2_Circulatory system / Endocrine, nutritional and metabolic diseases ",0.19439999999999999]
["URG044",44,"N-A_T2_Injury",0.17879999999999999]
["URG045",45,"N-A_T2_Poisoning",0.1951]
["URG046",46,"N-A_T2_All other MDB groups",0.15190000000000001]
["URG095",95,"N-A_T2_Respiratory system illness ",0.17979999999999999]
["URG096",96,"N-A_T2_Urological system illness ",0.19650000000000001]
["URG097",97,"N-A_T2_Gastrointestinal system and Digestive system illness",0.18340000000000001]
["URG098",98,"N-A_T2_Neurological illness ",0.2046]
["URG099",99,"N-A_T2_Blood/immune system illness/system infection/parasites ",0.1767]
["URG100",100,"N-A_T2_Psychiatric illness ",0.1842]
["URG048",48,"N-A_T3_Circulatory system and Endocrine, nutritional and metabolic illness",0.1464]
["URG050",50,"N-A_T3_Injury",0.1249]
["URG051",51,"N-A_T3_Genitourinary illness",0.14510000000000001]
["URG052",52,"N-A_T3_Gastrointestinal system and Digestive system illness",0.13969999999999999]
["URG053",53,"N-A_T3_Neurological illness",0.1507]
["URG055",55,"N-A_T3_Respiratory system illness",0.1198]
["URG056",56,"N-A_T3_Musculoskeletal/connective tissue illness",0.12970000000000001]
[{"$f":"IF(LEN(B67)=1,\"URG00\"&B67,IF(LEN(B67)=2,\"URG0\"&B67,\"URG\"&B67))","v":"URG057"},57,"N-A_T3_All other MDB groups",0.1094]
["URG101",101,"N-A_T3_Poisoning ",0.14199999999999999]
["URG102",102,"N-A_T3_Toxic effects of drugs ",0.1517]
["URG103",103,"N-A_T3_Illness of eyes",8.5300000000000001E-2]
["URG104",104,"N-A_T3_Blood/immune system illness/system infection/parasites ",0.1132]
["URG105",105,"N-A_T3_Psychiatric illness ",0.13339999999999999]
["URG058",58,"N-A_T4_Injury",7.7100000000000002E-2]
["URG060",60,"N-A_T4_Urological system illness ",9.9500000000000005E-2]
["URG061",61,"N-A_T4_Circulatory system / Endocrine, nutritional and metabolic illness ",0.1042]
["URG062",62,"N-A_T4_Gastrointestinal system and Digestive system illness",9.7100000000000006E-2]
["URG063",63,"N-A_T4_Musculoskeletal/connective tissue illness",8.7599999999999997E-2]
["URG065",65,"N-A_T4_Illness of the ENT",6.5199999999999994E-2]
["URG066",66,"N-A_T4_Illness of the Eyes",5.7299999999999997E-2]
["URG067",67,"N-A_T4_Other presentation block",7.7600000000000002E-2]
["URG068",68,"N-A_T4_All other MDB groups",8.4400000000000003E-2]
["URG106",106,"N-A_T4_Poisoning",7.8700000000000006E-2]
["URG107",107,"N-A_T4_Toxic effects of drugs ",0.1031]
["URG108",108,"N-A_T4_Respiratory system illness ",8.09E-2]
["URG109",109,"N-A_T4_Blood/Immune system illness/System infection/parasites ",7.5399999999999995E-2]
["URG110",110,"N-A_T4_Obstetric and Newborn/Neonate ",7.4800000000000005E-2]
["URG111",111,"N-A_T4_Gynecological/Male reproductive system illness ",9.0800000000000006E-2]
["URG112",112,"N-A_T4_Psychiatric illness",9.1499999999999998E-2]
["URG069",69,"N-A_T5_Poisoning/Toxic effects of drugs",5.9700000000000003E-2]
["URG070",70,"N-A_T5_Injury",5.1400000000000001E-2]
["URG071",71,"N-A_T5_Other presentation block",4.5699999999999998E-2]
["URG072",72,"N-A_T5_All other MDB groups",5.9700000000000003E-2]
["URG113",113,"N-A_T5_Circulatory system illness/Endocrine, nutritional and metabolic diseases ",7.2099999999999997E-2]
["URG114",114,"N-A_T5_Gastrointestinal system and Digestive system illness ",6.6500000000000004E-2]
["URG115",115,"N-A_T5_Illness of the eyes, ear, nose and throat ",4.1799999999999997E-2]
["URG116",116,"N-A_T5_Illness of the skin, subcutaneous tissue, breast/Musculoskeletal/Connective tissue illness ",5.3600000000000002E-2]
["URG117",117,"N-A_T5_Blood/immune system illness/system infection/parasites ",5.6000000000000001E-2]
["URG118",118,"N-A_T5_Obstetric illness/Newborn/Neonate ",5.0099999999999999E-2]
["URG119",119,"N-A_T5_Genitourinary system illness ",6.3899999999999998E-2]
["URG120",120,"N-A_T5_Psychiatric illness",6.2199999999999998E-2]
["URG038",38,"Dead on Arrival w any Triage w any MDB",5.2499999999999998E-2]
["URG073",73,"Did Not Wait",3.1899999999999998E-2]
["URG074",74,"Transfer presentation_1, 2",0.2205]
["URG121",121,"Transfer presentation_3",0.1855]
["URG122",122,"Transfer presentation_4",0.13469999999999999]
["URG123",123,"Transfer presentation_5",9.6299999999999997E-2]
["URG075",75,"Died in emergency department_triage 1",0.2482]
["URG124",124,"Died in emergency department_triage 2-5",0.19370000000000001]
["URG076",76,"Adm_Return visit, planned w any Triage",0.12509999999999999]
["URG077",77,"N-A Return visit, planned – Triage 1, 2",0.16259999999999999]
["URG078",78,"N-A Return visit, planned – Triage 3-5",5.8000000000000003E-2]
["URG125",125,"Left at own risk_1, 2",0.16109999999999999]
["URG126",126,"Left at own risk_3",0.1038]
["URG127",127,"Left at own risk_4",7.0800000000000002E-2]
["URG128",128,"Left at own risk_5",5.6399999999999999E-2]